bitfinex/quotes_ETHUSD_20240721
["timestamp","ask_amount","ask_price","bid_price","bid_amount"]
[1721579553263,0.07231778,3495.5,3495.4,2.3638]
[1721579553486,2.86066,3495.7,3495.4,2.3638]
[1721579554277,0.07231778,3495.6,3495.4,2.3638]
[1721579554479,0.59625042,3495.9,3495.4,2.3638]
[1721579554696,0.07231778,3495.5,3495.4,2.3638]
[1721579554857,6.7551767,3496.0,3495.4,2.3638]
[1721579555035,0.07231778,3495.5,3495.4,2.3638]
[1721579555238,2.8605,3495.9,3495.4,2.3638]
[1721579555485,0.07231778,3495.5,3495.4,2.3638]
[1721579555683,2.8605,3495.9,3495.4,2.3638]
[1721579555982,2.86051,3495.9,3495.4,2.3638]
[1721579556280,2.93288778,3495.8,3495.4,2.3638]
[1721579556468,3.5291382,3495.8,3495.4,2.3638]
[1721579556841,2.86066,3495.7,3495.4,2.3638]
[1721579557042,2.86066,3495.7,3495.1,2.629538]
[1721579557043,2.86104,3495.3,3495.1,2.629538]
[1721579557564,5.93339392,3495.2,3495.1,0.152538]
[1721579557774,6.96156036,3495.2,3495.1,0.152538]
[1721579558285,4.10050036,3495.2,3495.1,0.152538]
[1721579559462,6.96156036,3495.2,3495.1,0.152538]
[1721579560179,3.07233392,3495.2,3495.1,0.152538]
[1721579560981,0.07233392,3495.2,3495.1,0.152538]
[1721579561338,5.86091,3495.4,3495.1,0.152538]
[1721579561539,0.07212118,3495.3,3495.1,0.152538]
[1721579562146,0.07213438,3495.2,3495.1,0.152538]
[1721579562580,5.86083,3495.5,3495.1,0.152538]
[1721579562798,1.02087105,3495.4,3495.1,0.152538]
[1721579562946,1.09300543,3495.4,3495.1,0.152538]
[1721579564283,2.86099,3495.3,3495.1,0.152538]
[1721579564576,3.0,3495.2,3495.1,0.152538]
[1721579565083,3.07214759,3495.2,3495.1,0.152538]
[1721579565384,0.07214759,3495.2,3495.1,0.152538]
[1721579565991,4.3190478,3495.4,3495.1,0.152538]
[1721579567457,0.07214759,3495.3,3495.1,0.152538]
[1721579570077,0.48080897,3495.3,3495.1,0.152538]
[1721579570310,3.34179897,3495.3,3495.1,0.152538]
[1721579570595,3.0,3495.2,3495.1,0.152538]
[1721579570966,3.07213879,3495.2,3495.1,0.152538]
[1721579571186,0.07213879,3495.2,3495.1,0.152538]
[1721579571499,4.6182747,3495.4,3495.1,0.152538]
[1721579571657,0.07213879,3495.2,3495.1,0.152538]
[1721579571859,4.6182747,3495.4,3495.1,0.152538]
[1721579572057,0.07213879,3495.2,3495.1,0.152538]
[1721579572258,4.6182747,3495.4,3495.1,0.152538]
[1721579572657,0.07213879,3495.3,3495.1,0.152538]
[1721579576099,0.07213879,3495.3,3495.2,2.385]
[1721579576598,0.37135132,3495.3,3495.2,2.385]
[1721579578302,0.37135132,3495.3,3495.1,0.152538]
[1721579578801,4.17149215,3495.3,3495.1,0.152538]
[1721579579382,1.31046215,3495.3,3495.1,0.152538]
[1721579579570,0.37135132,3495.3,3495.1,0.152538]
[1721579580580,0.37135132,3495.3,3495.2,2.385]
[1721579580918,0.8909801,3496.0,3495.2,2.385]
[1721579580919,3.45675042,3495.9,3495.2,2.385]
[1721579581425,3.66842735,3495.8,3495.2,2.385]
[1721579581798,3.45697042,3495.7,3495.2,2.385]
[1721579581998,3.52923643,3495.6,3495.2,2.385]
[1721579582200,2.86083,3495.5,3495.2,2.385]
[1721579582402,0.07221508,3495.4,3495.2,2.385]
[1721579584134,0.6684655,3495.4,3495.2,2.385]
[1721579584628,0.59625042,3495.3,3495.1,0.152538]
[1721579585028,0.07217106,3495.2,3495.1,0.152538]
[1721579585406,0.59625042,3495.3,3495.1,0.152538]
[1721579585608,0.07217106,3495.2,3495.1,0.152538]
[1721579585819,3.45731042,3495.2,3495.1,0.152538]
[1721579586008,3.52947268,3495.2,3495.1,0.152538]
[1721579589511,0.07216226,3495.2,3495.1,0.152538]
[1721579589708,0.66958589,3495.2,3495.1,0.152538]
[1721579589921,0.8909801,3495.4,3495.1,0.152538]
[1721579589922,0.59742363,3495.3,3495.2,2.385]
[1721579590308,0.59742363,3495.4,3495.2,2.385]
[1721579590514,0.59742363,3495.5,3495.2,2.385]
[1721579590907,0.59742363,3495.6,3495.2,2.385]
[1721579591466,0.59742363,3495.5,3495.2,2.385]
[1721579592240,0.8909801,3495.7,3495.2,2.385]
[1721579592241,0.59742363,3495.4,3495.2,2.385]
[1721579592441,0.59742363,3495.3,3495.2,2.385]
[1721579592824,0.59742363,3495.4,3495.2,2.385]
[1721579593005,0.8909801,3495.5,3495.2,2.385]
[1721579593006,0.59742363,3495.3,3495.2,2.385]
[1721579593208,0.59742363,3495.4,3495.2,2.385]
[1721579593446,0.59742363,3495.3,3495.2,2.385]
[1721579593651,0.59742363,3495.4,3495.2,2.385]
[1721579593842,0.59742363,3495.3,3495.2,2.385]
[1721579594827,2.86098,3495.3,3495.2,2.385]
[1721579595030,4.53203646,3495.3,3495.2,2.385]
[1721579595655,4.53841831,3495.3,3495.2,2.385]
[1721579595826,3.75834195,3495.3,3495.2,2.385]
[1721579596213,2.86106,3495.2,3495.1,0.152538]
[1721579596415,3.75848607,3495.2,3495.1,0.152538]
[1721579596662,2.86106,3495.2,3495.1,0.152538]
[1721579597438,2.93325602,3495.2,3495.1,0.152538]
[1721579598320,3.83038752,3495.2,3495.1,0.152538]
[1721579598944,2.93325602,3495.2,3495.1,0.152538]
[1721579599262,3.8305287,3495.2,3495.1,0.152538]
[1721579599435,0.9694687,3495.2,3495.1,0.152538]
[1721579599750,0.6703845,3495.2,3495.1,2.492638]
[1721579600166,2.93325602,3495.2,3495.1,2.492638]
[1721579600324,4.02119024,3495.2,3495.1,2.492638]
[1721579600719,4.91846292,3495.2,3495.1,2.492638]
[1721579601157,4.91846292,3495.2,3495.1,0.152538]
[1721579601946,4.02119024,3495.2,3495.1,0.152538]
[1721579603259,4.91916103,3495.2,3495.1,0.152538]
[1721579603461,4.02119024,3495.2,3495.1,0.152538]
[1721579603823,4.91882333,3495.2,3495.1,0.152538]
[1721579604165,0.96982911,3495.2,3495.1,0.152538]
[1721579604324,0.96982911,3495.2,3495.1,2.410038]
[1721579604519,0.67058467,3495.2,3495.1,2.410038]
[1721579604723,0.59838865,3495.2,3495.1,2.410038]
[1721579605062,0.67051864,3495.2,3495.1,2.410038]
[1721579606536,0.67048139,3495.2,3495.1,2.410038]
[1721579606739,0.07212999,3495.2,3495.1,2.410038]
[1721579607259,0.0721564,3495.2,3495.1,2.410038]
[1721579607471,0.89763309,3495.2,3495.1,2.410038]
[1721579607625,0.96978949,3495.2,3495.1,2.410038]
[1721579610678,0.0721564,3495.2,3495.1,2.410038]
[1721579611031,4.04895347,3495.3,3495.1,2.410038]
[1721579611227,0.07214613,3495.2,3495.1,2.410038]
[1721579611479,0.89764357,3495.2,3495.1,2.410038]
[1721579611677,0.9697897,3495.2,3495.1,2.410038]
[1721579611846,0.07214613,3495.2,3495.1,2.410038]
[1721579612366,0.59844567,3495.2,3495.1,2.410038]
[1721579612539,0.6705874,3495.2,3495.1,2.410038]
[1721579613130,0.07214173,3495.2,3495.1,5.5121818]
[1721579613567,0.59844567,3495.4,3495.1,5.5121818]
[1721579613878,0.59844567,3495.5,3495.2,2.2575]
[1721579614373,0.07221215,3495.4,3495.2,2.2575]
[1721579615092,0.07221215,3495.4,3495.2,5.11855]
[1721579615457,0.67065782,3495.4,3495.2,2.2575]
[1721579616056,0.07221215,3495.4,3495.2,2.2575]
[1721579616473,0.67065782,3495.4,3495.2,2.2575]
[1721579616700,0.07221215,3495.4,3495.2,2.2575]
[1721579617054,0.67065782,3495.4,3495.2,2.2575]
[1721579620122,0.07221215,3495.4,3495.2,2.2575]
[1721579621203,0.07221215,3495.4,3495.3,5.12968]
[1721579621358,0.07221215,3495.4,3495.3,7.61659047]
[1721579621560,0.89764357,3496.2,3495.3,7.61659047]
[1721579621561,0.59844567,3496.2,3495.9,2.431]
[1721579621881,0.07227965,3496.1,3495.9,2.431]
[1721579622400,0.59844567,3496.2,3495.9,2.431]
[1721579622575,0.59844567,3496.0,3495.9,2.431]
[1721579622893,0.67084854,3496.0,3495.9,2.431]
[1721579623113,0.67084854,3496.0,3495.5,2.431]
[1721579625282,3.53127854,3496.0,3495.5,2.431]
[1721579625966,0.67084854,3496.0,3495.5,2.431]
[1721579626164,3.53127854,3496.0,3495.5,2.431]
[1721579626369,0.59844567,3495.9,3495.5,2.431]
[1721579626573,3.53127854,3496.0,3495.5,2.431]
[1721579626812,3.45887567,3496.0,3495.5,2.431]
[1721579627104,3.45887567,3496.0,3495.2,2.431]
[1721579627105,0.59844567,3495.8,3495.2,2.431]
[1721579627406,3.45927567,3495.5,3495.1,7.40525929]
[1721579627621,0.59844567,3495.4,3495.1,7.40525929]
[1721579627912,0.6707752,3495.3,3495.1,7.40525929]
[1721579629369,0.07232953,3495.3,3495.1,7.40525929]
[1721579629889,0.07225323,3495.2,3495.1,7.40525929]
[1721579630289,3.0,3495.6,3495.1,7.40525929]
[1721579630290,0.59844567,3495.6,3495.1,7.40525929]
[1721579630529,0.59844567,3495.6,3495.1,10.26632929]
[1721579630707,0.07217693,3495.5,3495.2,2.431]
[1721579631198,0.59844567,3495.7,3495.2,2.431]
[1721579631605,0.07219013,3495.6,3495.2,2.431]
[1721579631782,0.6706358,3495.6,3495.2,2.431]
[1721579632182,0.07219013,3495.6,3495.2,2.431]
[1721579632412,0.6706358,3495.6,3495.2,2.431]
[1721579633293,0.59844567,3495.5,3495.2,2.431]
[1721579633495,0.59844567,3495.4,3495.1,0.15525929]
[1721579633711,0.59844567,3495.3,3495.1,0.15525929]
[1721579633926,0.6706358,3495.3,3495.1,0.15525929]
[1721579636203,0.07219013,3495.3,3495.2,2.4544]
[1721579636403,3.45919567,3495.6,3495.2,2.4544]
[1721579636623,0.67062847,3495.5,3495.2,2.4544]
[1721579638031,0.0721828,3495.5,3495.2,2.4544]
[1721579639209,0.67062847,3495.5,3495.2,2.4544]
[1721579641924,0.0721828,3495.5,3495.2,2.4544]
[1721579642315,0.0721828,3495.5,3495.2,3.00147993]
[1721579642761,0.59844567,3495.9,3495.2,3.00147993]
[1721579642916,0.59844567,3495.9,3495.3,2.86093]
[1721579643228,0.07220333,3495.8,3495.3,2.86093]
[1721579644657,0.07220333,3495.8,3495.4,2.8609]
[1721579645259,0.07220333,3495.8,3495.2,5.86249993]
[1721579645556,0.07220333,3495.8,3495.3,2.86098]
[1721579645557,0.59844567,3495.8,3495.3,2.86098]
[1721579645856,0.07220333,3495.7,3495.3,2.86098]
[1721579646024,0.59844567,3495.8,3495.3,2.86098]
[1721579646449,0.07220333,3495.7,3495.3,2.86098]
[1721579646656,0.59844567,3495.8,3495.3,2.86098]
[1721579646843,0.07220333,3495.7,3495.3,2.86098]
[1721579647153,0.59844567,3495.9,3495.4,2.86089]
[1721579647312,0.07220333,3495.6,3495.4,2.86089]
[1721579647516,0.59844567,3496.0,3495.4,2.86089]
[1721579647958,0.07220333,3495.9,3495.4,2.86089]
[1721579650809,0.07220333,3495.9,3495.5,2.4544]
[1721579650956,0.07220333,3495.9,3495.6,2.4544]
[1721579651295,0.59844567,3496.3,3495.8,2.86057]
[1721579651590,0.59844567,3496.3,3495.6,5.31513]
[1721579651785,0.59844567,3496.2,3495.6,5.31513]
[1721579652894,0.59844567,3496.2,3495.6,2.4544]
[1721579653068,3.45870567,3496.2,3495.6,2.4544]
[1721579653500,0.59844567,3496.1,3495.6,2.4544]
[1721579653860,3.89764357,3496.3,3495.6,2.4544]
[1721579653861,0.59844567,3496.2,3495.6,2.4544]
[1721579654090,0.59844567,3496.2,3495.6,5.31513]
[1721579655100,3.45874567,3496.2,3495.6,2.4544]
[1721579655282,0.59844567,3496.1,3495.6,2.4544]
[1721579655473,0.59844567,3496.2,3495.6,2.4544]
[1721579656691,3.45871567,3496.2,3495.6,2.4544]
[1721579657004,0.59844567,3496.1,3495.6,2.4544]
[1721579657560,0.07231779,3496.0,3495.6,2.4544]
[1721579658293,2.93272779,3496.0,3495.6,2.4544]
[1721579658457,0.07231779,3496.0,3495.6,2.4544]
[1721579658661,2.86049,3495.9,3495.6,2.4544]
[1721579658879,0.0723398,3495.8,3495.6,2.4544]
[1721579661376,3.45890567,3496.0,3495.6,2.4544]
[1721579661577,0.07229432,3495.7,3495.6,2.4544]
[1721579661809,2.86058,3495.8,3495.6,2.4544]
[1721579661992,0.07230312,3495.7,3495.6,2.4544]
[1721579662389,3.45902567,3495.8,3495.6,2.4544]
[1721579662723,2.93303312,3495.7,3495.2,26.98]
[1721579662926,3.53140879,3495.7,3495.2,26.98]
[1721579663486,2.86074,3495.6,3495.2,26.98]
[1721579663792,3.45918567,3495.6,3495.2,26.98]
[1721579663987,0.07231046,3495.5,3495.2,26.98]
[1721579664217,0.59844567,3495.4,3495.2,26.98]
[1721579664519,0.07227229,3495.3,3495.2,26.98]
[1721579665716,2.93325229,3495.3,3495.2,26.98]
[1721579666204,0.07227229,3495.3,3495.2,26.98]
[1721579666940,0.59844567,3495.4,3495.2,26.98]
[1721579667230,0.07224882,3495.3,3495.2,26.98]
[1721579667612,2.86106,3495.2,3495.1,0.15525929]
[1721579667937,6.53033005,3495.2,3495.1,0.15525929]
[1721579668808,3.66927005,3495.2,3495.1,0.15525929]
[1721579671618,6.53033005,3495.2,3495.1,0.15525929]
[1721579672844,5.93330882,3495.2,3495.1,0.15525929]
[1721579673132,7.61823282,3495.2,3495.1,0.15525929]
[1721579674041,7.61655545,3495.2,3495.1,0.152538]
[1721579674344,6.52856486,3495.2,3495.1,0.152538]
[1721579674501,3.66746336,3495.2,3495.1,0.152538]
[1721579674700,0.66746336,3495.2,3495.1,0.152538]
[1721579675489,0.07057145,3495.2,3495.1,0.152538]
[1721579675663,2.93163145,3495.2,3495.1,0.152538]
[1721579675988,6.52852336,3495.2,3495.1,0.152538]
[1721579677552,5.93163145,3495.2,3495.1,0.152538]
[1721579678273,3.07057145,3495.2,3495.1,0.152538]
[1721579679268,0.07057145,3495.2,3495.1,0.152538]
[1721579679471,3.59689191,3495.4,3495.1,0.152538]
[1721579679774,0.07206087,3495.3,3495.1,0.152538]
[1721579679970,0.07206087,3495.3,3495.2,2.3975]
[1721579682216,0.59689191,3495.3,3495.2,2.3975]
[1721579682506,0.59689191,3495.3,3495.1,0.152538]
[1721579682507,6.52998559,3495.3,3495.1,0.152538]
[1721579683005,3.66900559,3495.3,3495.1,0.152538]
[1721579684104,6.52998559,3495.3,3495.1,0.152538]
[1721579688103,2.86106,3495.2,3495.1,0.152538]
[1721579688301,6.45795191,3495.2,3495.1,0.152538]
[1721579688627,5.93317368,3495.2,3495.1,0.152538]
[1721579689224,6.53006559,3495.2,3495.1,0.152538]
[1721579689428,5.93317368,3495.2,3495.1,0.152538]
[1721579689605,7.07080909,3495.2,3495.1,0.152538]
[1721579689804,7.667701,3495.2,3495.1,0.152538]
[1721579690123,10.528761,3495.2,3495.1,0.152538]
[1721579692020,10.82951266,3495.2,3495.1,0.152538]
[1721579692336,9.93186909,3495.2,3495.1,0.152538]
[1721579693742,11.12737781,3495.2,3495.1,0.152538]
[1721579694621,10.22973424,3495.2,3495.1,0.152538]
[1721579695009,11.12737781,3495.2,3495.1,0.152538]
[1721579695392,10.22973424,3495.2,3495.1,0.152538]
[1721579696222,13.09079424,3495.2,3495.1,0.152538]
[1721579696404,13.64079424,3495.2,3495.1,0.152538]
[1721579696738,14.82876771,3495.2,3495.1,0.152538]
[1721579696940,13.64079424,3495.2,3495.1,0.152538]
[1721579697242,14.83342911,3495.2,3495.1,0.152538]
[1721579697541,13.64079424,3495.2,3495.1,0.152538]
[1721579698533,14.83318585,3495.2,3495.1,0.152538]
[1721579699101,13.64079424,3495.2,3495.1,0.152538]
[1721579699402,17.52960472,3495.2,3495.1,0.152538]
[1721579699901,2.86204,3494.0,3493.9,2.4782]
[1721579700148,2.93394674,3494.0,3493.9,2.4782]
[1721579700299,0.07190674,3494.0,3493.9,2.4782]
[1721579700495,0.07190674,3494.0,3493.9,3.2812]
[1721579700742,3.0,3494.2,3493.9,3.2812]
[1721579700941,0.07185242,3494.0,3493.9,3.2812]
[1721579701120,3.0,3494.2,3493.9,3.2812]
[1721579701435,0.06940984,3494.0,3493.9,3.2812]
[1721579701653,3.0,3494.2,3493.9,3.2812]
[1721579701803,0.06941721,3494.0,3493.9,3.2812]
[1721579702322,3.0,3494.4,3493.9,3.2812]
[1721579702526,0.06941721,3494.0,3493.9,3.2812]
[1721579702940,3.0,3494.4,3493.9,3.2812]
[1721579703161,5.86173,3494.4,3493.9,3.2812]
[1721579703513,0.06943491,3494.3,3493.9,3.2812]
[1721579705240,0.06943491,3494.3,3494.1,0.803]
[1721579705466,0.06943491,3494.3,3493.9,3.2812]
[1721579706166,0.06943491,3494.3,3494.1,0.803]
[1721579706328,0.06943491,3494.3,3494.2,2.4782]
[1721579706524,3.0,3494.6,3494.2,2.4782]
[1721579706739,0.06943491,3494.5,3494.4,3.2812]
[1721579707163,0.59606587,3494.8,3494.4,3.2812]
[1721579707361,0.59606587,3494.8,3494.7,2.4782]
[1721579707666,0.8940988,3495.0,3494.7,2.4782]
[1721579707667,0.59606587,3495.0,3494.7,2.4782]
[1721579707889,0.59606587,3495.1,3494.7,2.4782]
[1721579708367,0.59606587,3495.0,3494.7,2.4782]
[1721579708568,0.59606587,3495.1,3494.7,2.4782]
[1721579710152,3.59606587,3495.1,3494.7,2.4782]
[1721579710367,0.59606587,3495.0,3494.7,2.4782]
[1721579710571,0.59606587,3495.1,3494.7,3.012183]
[1721579710770,3.59606587,3495.3,3494.9,2.4782]
[1721579711064,3.59606587,3495.4,3494.9,2.4782]
[1721579711268,0.59606587,3495.4,3494.9,2.4782]
[1721579711445,0.59606587,3495.4,3495.0,2.86122]
[1721579711641,0.59606587,3495.5,3495.1,5.22562]
[1721579711864,0.59606587,3495.6,3495.2,2.3645]
[1721579712447,0.59606587,3495.7,3495.2,2.3645]
[1721579712777,0.59606587,3495.7,3495.6,2.86073]
[1721579712979,0.59606587,3496.1,3495.6,5.22523]
[1721579713335,0.06515994,3496.0,3495.7,2.86065]
[1721579713673,0.59606587,3496.2,3495.7,2.86065]
[1721579713860,1.1911245,3496.4,3495.7,2.86065]
[1721579713861,0.06515994,3495.9,3495.8,2.3645]
[1721579714170,0.59606587,3496.3,3495.8,2.3645]
[1721579714375,0.06515994,3495.9,3495.8,2.3645]
[1721579714566,0.59606587,3496.3,3495.8,2.3645]
[1721579714761,0.06515994,3495.9,3495.8,2.3645]
[1721579714953,0.59606587,3496.3,3495.8,2.3645]
[1721579714954,0.59606587,3496.2,3495.8,2.3645]
[1721579715155,0.59606587,3496.1,3495.8,2.3645]
[1721579715477,0.66122581,3496.1,3495.8,2.3645]
[1721579716573,0.06515994,3496.1,3495.8,2.3645]
[1721579718705,0.59606587,3496.3,3495.8,5.22507]
[1721579718862,0.06523694,3496.0,3495.8,5.22507]
[1721579719199,0.06523694,3495.9,3495.8,5.22507]
[1721579719748,0.89309157,3496.4,3495.8,5.22507]
[1721579719962,0.82994898,3496.3,3495.8,5.22507]
[1721579720281,0.06523694,3496.3,3495.8,5.22507]
[1721579720715,0.66130281,3496.3,3495.8,2.3645]
[1721579721103,0.06523694,3496.3,3495.8,2.3645]
[1721579721424,0.66130281,3496.3,3495.8,2.3645]
[1721579721575,1.83775871,3496.3,3495.8,2.3645]
[1721579721775,4.83775871,3496.3,3495.8,2.3645]
[1721579723194,4.24169284,3496.3,3495.8,2.3645]
[1721579723389,0.06523694,3496.3,3495.8,2.3645]
[1721579723592,3.0,3496.2,3495.8,2.3645]
[1721579723793,0.06537465,3496.2,3495.8,2.3645]
[1721579724014,0.2970257,3496.4,3495.8,2.3645]
[1721579724191,0.06537465,3496.1,3495.8,2.3645]
[1721579724393,0.2970257,3496.4,3495.8,2.3645]
[1721579724590,0.06537465,3496.0,3495.8,2.3645]
[1721579724822,0.2970257,3496.4,3495.8,2.3645]
[1721579725121,0.06537465,3495.9,3495.8,5.22507]
[1721579725330,0.2970257,3496.4,3495.9,2.86047]
[1721579725546,0.2970257,3496.4,3496.0,2.4567]
[1721579725713,0.06321503,3496.3,3496.1,2.86032]
[1721579725917,0.06321503,3496.3,3496.2,5.31694]
[1721579726145,0.89522674,3497.1,3496.4,2.86004]
[1721579726346,0.59693823,3497.1,3496.4,2.86004]
[1721579726652,0.06110836,3497.0,3496.6,2.85989]
[1721579726808,0.06110836,3497.0,3496.9,2.4567]
[1721579727009,0.06110836,3497.0,3496.9,5.31637]
[1721579727233,0.29771921,3497.5,3496.9,5.31637]
[1721579727749,0.06116903,3497.4,3496.9,5.31637]
[1721579728149,0.06116903,3497.4,3496.9,2.4567]
[1721579728353,0.44256844,3497.4,3496.9,2.4567]
[1721579730455,0.06116903,3497.4,3497.0,2.85956]
[1721579730661,0.06116903,3497.4,3496.9,2.4567]
[1721579730828,0.06116903,3497.4,3497.3,5.31604]
[1721579731337,1.4901648,3498.5,3497.3,5.31604]
[1721579731338,2.85878,3498.0,3497.3,2.4567]
[1721579731552,0.06124153,3497.4,3497.3,2.4567]
[1721579731708,3.15613432,3498.2,3497.3,2.4567]
[1721579731709,2.8587,3498.1,3497.3,2.4567]
[1721579731916,0.08770505,3497.4,3497.3,2.4567]
[1721579732137,2.85918,3497.6,3496.9,22.1867]
[1721579732338,3.430992,3497.6,3496.9,22.1867]
[1721579732553,2.94715298,3497.5,3496.9,22.1867]
[1721579732855,0.08789298,3497.5,3496.9,22.1867]
[1721579733435,3.08789298,3497.5,3496.9,22.1867]
[1721579733745,3.08789298,3497.5,3496.9,25.04634]
[1721579734139,3.0,3497.4,3496.9,25.04634]
[1721579734324,3.0,3497.6,3496.9,25.04634]
[1721579734521,0.08790631,3497.3,3496.9,25.04634]
[1721579734842,3.0,3497.6,3496.9,25.04634]
[1721579735025,0.08787968,3497.2,3496.9,22.1867]
[1721579735364,3.0,3497.9,3497.1,2.4567]
[1721579735581,0.29752432,3498.2,3497.6,2.85909]
[1721579735850,0.29752432,3498.2,3497.7,2.291]
[1721579736229,0.29752432,3498.2,3497.7,5.15]
[1721579737260,0.29752432,3498.2,3497.7,2.291]
[1721579737469,3.0,3498.7,3497.9,2.85884]
[1721579737648,0.08806015,3498.1,3497.9,2.85884]
[1721579737821,0.29737375,3498.5,3497.7,5.15001]
[1721579738251,0.08815775,3498.4,3497.7,2.291]
[1721579738654,0.29737375,3498.5,3497.7,2.291]
[1721579738959,0.29737375,3498.5,3498.1,2.85861]
[1721579739281,0.08815775,3498.4,3498.1,2.85861]
[1721579739762,0.08815775,3498.4,3498.2,2.85859]
[1721579739931,0.08815775,3498.4,3498.1,2.85868]
[1721579740423,0.08815775,3498.4,3498.3,2.85853]
[1721579740853,0.29912663,3498.9,3498.3,2.85853]
[1721579741176,0.08815775,3498.4,3498.3,2.85853]
[1721579741391,0.61570166,3498.8,3498.3,2.85853]
[1721579741583,0.08815775,3498.4,3498.3,2.85853]
[1721579741784,0.61570166,3498.8,3498.0,2.85876]
[1721579742396,0.08815775,3498.7,3498.2,2.291]
[1721579742683,0.59649029,3498.9,3498.4,2.85838]
[1721579742986,0.08821688,3498.6,3498.4,2.85838]
[1721579743200,0.59649029,3498.9,3498.4,2.85838]
[1721579743404,0.08822722,3498.5,3498.4,2.85838]
[1721579743975,0.59649029,3498.9,3498.4,2.85838]
[1721579744180,0.08822722,3498.5,3498.4,2.85838]
[1721579744379,0.08822722,3498.5,3498.2,5.14961]
[1721579744589,0.59649029,3498.9,3498.2,2.291]
[1721579744590,0.08822722,3498.4,3498.2,2.291]
[1721579744792,3.0,3498.8,3498.2,2.291]
[1721579744982,0.08822722,3498.7,3498.2,2.291]
[1721579746105,0.35428575,3498.6,3498.2,2.291]
[1721579746490,0.08830705,3498.5,3498.2,2.291]
[1721579746820,3.59649029,3498.9,3498.2,5.1496]
[1721579747010,0.08828783,3498.4,3498.2,5.1496]
[1721579747167,2.85812,3498.8,3498.2,2.291]
[1721579747371,0.08828783,3498.7,3498.2,2.291]
[1721579748088,3.59649029,3498.9,3498.2,2.291]
[1721579748421,4.52771732,3498.9,3498.2,2.291]
[1721579748619,0.08828783,3498.8,3498.2,2.291]
[1721579749116,0.08828783,3498.8,3498.2,5.14959]
[1721579750515,0.08828783,3498.8,3498.4,2.85843]
[1721579750924,0.08828783,3498.8,3498.6,2.85827]
[1721579751421,3.0,3499.3,3498.6,2.85827]
[1721579751613,0.08828636,3498.7,3498.5,5.14936]
[1721579751813,0.88313694,3499.2,3498.5,2.291]
[1721579752009,2.85804,3498.9,3498.5,2.291]
[1721579752254,3.08831741,3498.8,3498.5,2.291]
[1721579753424,5.94646741,3498.8,3498.3,7.25]
[1721579753621,0.59464674,3498.7,3498.3,7.25]
[1721579753853,0.68293902,3498.7,3498.3,7.25]
[1721579754011,3.54114902,3498.7,3498.3,7.25]
[1721579754424,2.85841,3498.5,3498.3,7.25]
[1721579754630,3.0,3498.6,3498.1,19.73]
[1721579754954,2.85861,3498.2,3498.1,19.73]
[1721579755132,2.85861,3498.2,3497.7,7.25]
[1721579755133,2.8587,3498.1,3497.7,7.25]
[1721579755336,3.08826715,3498.2,3497.7,7.25]
[1721579755645,3.08826715,3498.1,3497.7,7.25]
[1721579756414,0.39709387,3498.1,3497.7,7.25]
[1721579756739,2.85861,3498.3,3497.7,7.25]
[1721579756914,3.0,3498.2,3497.7,7.25]
[1721579757112,3.08822868,3498.2,3497.7,7.25]
[1721579757330,0.08822868,3498.2,3497.7,7.25]
[1721579757740,5.85848,3498.4,3497.7,7.25]
[1721579757939,0.08822868,3498.1,3497.7,7.25]
[1721579758212,0.08822868,3498.0,3497.7,7.25]
[1721579758552,3.0,3498.2,3497.7,7.25]
[1721579758759,0.08822868,3497.9,3497.7,7.25]
[1721579759055,0.08822868,3497.8,3497.7,7.25]
[1721579759212,0.08822868,3497.8,3497.6,19.73]
[1721579759554,0.871676,3498.3,3497.6,19.73]
[1721579759918,0.08822868,3498.2,3497.6,19.73]
[1721579760141,0.08822868,3498.2,3497.6,22.58908]
[1721579760345,0.08822868,3498.2,3497.7,2.3401]
[1721579760532,0.08822868,3498.2,3497.9,2.85885]
[1721579760748,3.0,3498.6,3497.9,2.85885]
[1721579760924,3.0,3498.6,3498.0,2.85877]
[1721579761254,3.0,3498.6,3497.7,7.12611]
[1721579761255,5.8582,3498.7,3497.8,2.85889]
[1721579761426,5.8582,3498.7,3497.9,2.85885]
[1721579761647,0.08815773,3498.6,3497.9,2.85885]
[1721579762738,0.08815773,3498.6,3498.3,2.85846]
[1721579762916,0.08815773,3498.6,3498.5,2.85836]
[1721579763140,2.85778,3499.3,3498.5,2.85836]
[1721579763344,0.29725884,3499.2,3498.5,2.85836]
[1721579763595,0.38544762,3499.2,3498.5,2.85836]
[1721579764054,0.38544762,3499.2,3498.7,2.85818]
[1721579764678,0.38544762,3499.2,3498.5,2.8583]
[1721579765967,0.38544762,3499.2,3498.2,9.5901]
[1721579766308,0.38544762,3499.2,3498.8,2.85811]
[1721579767209,0.38544762,3499.2,3498.9,2.39725769]
[1721579767363,2.85715,3500.0,3499.1,2.85787]
[1721579767563,0.08265602,3499.8,3499.1,2.85787]
[1721579768078,0.08265602,3499.8,3498.9,4.2671]
[1721579768296,0.08265602,3499.8,3499.4,2.3401]
[1721579768616,3.45272587,3500.6,3499.7,2.85738]
[1721579768617,2.85666,3500.6,3499.7,2.85738]
[1721579768765,0.29703756,3500.5,3499.7,2.85738]
[1721579768970,3.23375298,3500.5,3499.7,2.85738]
[1721579769303,0.3233753,3500.4,3499.7,2.85738]
[1721579769711,3.3233753,3500.4,3499.7,2.85738]
[1721579770006,0.07998542,3500.3,3499.7,2.85738]
[1721579770709,0.07998542,3500.3,3499.8,2.85728]
[1721579771264,0.07998542,3500.3,3499.5,10.10753]
[1721579771265,0.07998542,3500.3,3500.0,2.85714]
[1721579771465,0.07998542,3500.3,3500.1,5.25427725]
[1721579771669,2.85642,3500.9,3500.1,4.2671]
[1721579771670,0.29898475,3500.6,3500.1,4.2671]
[1721579771870,0.29898475,3500.6,3500.3,2.85689]
[1721579772091,0.08011692,3500.5,3500.3,2.85689]
[1721579772307,0.29898475,3500.6,3500.3,2.85689]
[1721579772510,0.08011692,3500.4,3500.3,2.85689]
[1721579772712,0.2971694,3501.1,3500.3,2.85689]
[1721579772930,0.08011692,3500.4,3500.3,2.85689]
[1721579773225,0.31532594,3501.0,3500.3,2.85689]